bitfinex/quotes_SOLUSD_20230110
["timestamp","ask_amount","ask_price","bid_price","bid_amount"]
[1673324285468,46.95,15.979,15.966,20.0]
[1673324288433,20.0,15.978,15.966,20.0]
[1673324288643,46.96,15.977,15.966,20.0]
[1673324288836,46.96,15.977,15.967,17.0]
[1673324289170,46.96,15.977,15.968,20.0]
[1673324289691,46.96,15.977,15.965,20.0]
[1673324290299,20.0,15.976,15.964,20.0]
[1673324290522,20.0,15.976,15.963,20.0]
[1673324290719,46.96,15.975,15.96,46.71]
[1673324291139,133.4,15.976,15.96,46.71]
[1673324291575,109.3451,15.975,15.96,46.71]
[1673324291787,156.3051,15.975,15.96,46.71]
[1673324293154,20.0,15.974,15.96,46.71]
[1673324293369,20.0,15.974,15.963,17.0]
[1673324293582,20.0,15.974,15.962,17.0]
[1673324293895,156.3051,15.975,15.962,17.0]
[1673324296202,20.0,15.974,15.961,20.0]
[1673324296398,63.97,15.973,15.953,55.094]
[1673324296615,82.97061681,15.973,15.955,20.0]
[1673324297051,39.00061681,15.972,15.955,20.0]
[1673324297379,20.0,15.97,15.954,21.4860587]
[1673324297580,46.98,15.969,15.954,21.4860587]
[1673324297788,20.0,15.967,15.954,21.4860587]
[1673324298424,20.0,15.967,15.954,1.4860587]
[1673324298846,20.0,15.967,15.954,21.4860587]
[1673324299165,66.99,15.967,15.954,21.4860587]
[1673324299569,66.99,15.967,15.954,1.4860587]
[1673324300007,66.99,15.967,15.954,18.4860587]
[1673324300314,66.99,15.967,15.955,20.0]
[1673324300519,66.99,15.967,15.954,1.4860587]
[1673324301152,46.99,15.967,15.954,1.4860587]
[1673324301369,117.3264,15.968,15.954,1.4860587]
[1673324301567,117.3264,15.968,15.955,47.02]
[1673324301784,117.3264,15.968,15.956,37.0]
[1673324302213,117.3264,15.968,15.957,20.0]
[1673324302427,117.3264,15.968,15.958,17.0]
[1673324302632,117.3264,15.968,15.959,20.0]
[1673324302827,117.3264,15.968,15.96,17.0]
[1673324303249,117.3264,15.968,15.961,20.0]
[1673324303478,117.3264,15.968,15.962,17.0]
[1673324306200,117.3264,15.968,15.961,20.0]
[1673324306409,46.99,15.967,15.957,20.0]
[1673324306737,20.0,15.966,15.953,20.0]
[1673324307256,46.99,15.965,15.95,32.3092352]
[1673324307578,20.0,15.964,15.95,5.5192352]
[1673324307773,47.0,15.963,15.95,5.5192352]
[1673324308198,20.0,15.962,15.95,5.5192352]
[1673324308522,47.01,15.961,15.95,5.5192352]
[1673324309133,112.0859,15.96,15.951,20.0]
[1673324309884,112.0859,15.96,15.95,5.5192352]
[1673324310194,20.0,15.959,15.95,5.5192352]
[1673324311144,20.0,15.959,15.951,20.0]
[1673324315956,112.0859,15.96,15.951,20.0]
[1673324316166,20.0,15.959,15.951,20.0]
[1673324317347,112.0859,15.96,15.951,20.0]
[1673324317746,20.0,15.959,15.951,20.0]
[1673324321015,67.01,15.959,15.951,20.0]
[1673324321419,20.0,15.958,15.95,5.5192352]
[1673324321630,20.0,15.956,15.95,5.5192352]
[1673324322495,47.02,15.955,15.95,5.5192352]
[1673324322709,20.0,15.954,15.95,5.5192352]
[1673324323110,20.0,15.954,15.951,20.0]
[1673324323527,20.0,15.954,15.95,5.5192352]
[1673324323741,20.0,15.952,15.95,5.5192352]
[1673324324589,14.0,15.952,15.941,20.0]
[1673324324782,14.0,15.952,15.94,27.01]
[1673324325958,14.0,15.952,15.941,20.0]
[1673324326676,130.9538,15.952,15.94,27.01]
[1673324326882,130.9538,15.952,15.941,20.0]
[1673324327625,130.9538,15.952,15.938,20.0]
[1673324328244,130.9538,15.952,15.939,17.0]
[1673324328479,20.0,15.95,15.94,20.0]
[1673324328694,47.04,15.949,15.94,20.0]
[1673324329092,20.0,15.948,15.938,20.0]
[1673324329509,20.0,15.948,15.939,17.0]
[1673324329847,20.0,15.948,15.94,20.0]
[1673324330248,47.04,15.95,15.938,20.0]
[1673324330470,47.03,15.951,15.939,20.0]
[1673324330679,130.9538,15.952,15.94,20.0]
[1673324331096,47.03,15.951,15.941,17.0]
[1673324331308,116.9538,15.952,15.941,36.00061681]
[1673324331514,116.9538,15.952,15.942,20.0]
[1673324331730,116.9538,15.952,15.943,17.0]
[1673324333612,112.0859,15.96,15.944,86.06061681]
[1673324333951,112.0859,15.96,15.945,37.0]
[1673324334134,112.0859,15.96,15.946,67.05]
[1673324334345,112.0859,15.96,15.947,37.0]
[1673324334590,112.0859,15.96,15.949,20.0]
[1673324334782,112.0859,15.96,15.95,20.0]
[1673324334989,112.0859,15.96,15.95,37.0]
[1673324335202,20.0,15.959,15.95,37.0]
[1673324344551,20.0,15.959,15.95,20.0]
[1673324344883,20.0,15.959,15.949,20.0]
[1673324345081,20.0,15.959,15.945,20.0]
[1673324345082,67.01,15.959,15.946,20.0]
[1673324346040,67.01,15.959,15.945,20.0]
[1673324346246,67.01,15.959,15.946,17.0]
[1673324346464,67.01,15.959,15.947,20.0]
[1673324347087,67.01,15.959,15.945,20.0]
[1673324347407,67.01,15.959,15.946,17.0]
[1673324347618,67.01,15.959,15.947,20.0]
[1673324348039,67.01,15.959,15.948,17.0]
[1673324348252,67.01,15.959,15.949,20.0]
[1673324348460,67.01,15.959,15.95,17.0]
[1673324348674,67.01,15.959,15.951,20.0]
[1673324351102,112.0859,15.96,15.951,20.0]
[1673324351423,46.99,15.965,15.952,37.0]
[1673324351638,115.8049,15.969,15.953,20.0]
[1673324351825,46.96,15.975,15.96,26.75]
[1673324352041,46.96,15.975,15.961,37.0]
[1673324352362,116.2233,15.984,15.963,20.0]
[1673324352363,46.95,15.979,15.963,20.0]
[1673324352566,46.94,15.982,15.964,47.0]
[1673324352772,46.94,15.982,15.965,17.0]
[1673324352982,46.94,15.982,15.966,46.99]
[1673324353209,20.0,15.981,15.967,20.0]
[1673324353827,20.0,15.981,15.968,17.0]
[1673324354041,20.0,15.981,15.969,20.0]
[1673324354245,46.95,15.98,15.969,20.0]
[1673324354451,73.61,15.98,15.961,47.01]
[1673324354763,104.04113502,15.979,15.96,26.68]
[1673324355080,20.0,15.977,15.957,20.0]
[1673324355288,63.96,15.976,15.957,20.0]
[1673324355518,20.0,15.974,15.958,47.01]
[1673324355710,46.97,15.973,15.958,47.01]
[1673324355921,46.97,15.973,15.959,20.0]
[1673324357206,46.97,15.973,15.96,20.0]
[1673324358880,46.97,15.974,15.96,20.0]
[1673324359095,20.0,15.973,15.96,20.0]
[1673324359404,46.97,15.972,15.96,20.0]
[1673324359723,20.0,15.973,15.96,20.0]
[1673324360456,66.97,15.974,15.96,20.0]
[1673324360667,20.0,15.973,15.96,20.0]
[1673324362863,66.97,15.974,15.96,20.0]
[1673324363204,46.97,15.974,15.961,39.00061681]
[1673324363516,115.0806,15.975,15.962,19.00061681]
[1673324363727,115.0806,15.975,15.963,20.0]
[1673324364861,115.0806,15.975,15.964,17.0]
[1673324371068,46.95,15.979,15.965,46.99]
[1673324371284,46.95,15.979,15.966,17.0]
[1673324371603,119.068,15.981,15.967,20.0]
[1673324371925,119.068,15.981,15.968,37.0]
[1673324372239,119.068,15.981,15.969,20.0]
[1673324374441,119.068,15.981,15.97,17.0]
[1673324374631,119.068,15.981,15.971,20.0]
[1673324374837,119.068,15.981,15.972,17.0]
[1673324380200,46.94,15.983,15.972,17.0]
[1673324380432,46.94,15.983,15.973,39.00061681]
[1673324380642,46.93,15.985,15.973,39.00061681]
[1673324380836,46.93,15.985,15.973,20.0]
[1673324381045,46.93,15.985,15.974,17.0]
[1673324382103,46.93,15.985,15.972,20.0]
[1673324382316,46.93,15.985,15.974,19.00061681]
[1673324383581,46.93,15.985,15.972,20.0]
[1673324383798,116.304,15.986,15.975,20.0]
[1673324384412,975.14128671,16.008,15.98,133.6]
[1673324384618,975.14128671,16.008,15.99,133.5]
[1673324384827,1089.62598671,16.008,15.991,83.92]
[1673324385034,46.87,16.007,15.992,20.0]
[1673324385263,46.87,16.007,15.993,17.0]
[1673324385462,1089.62598671,16.008,15.994,20.0]
[1673324385673,1089.62598671,16.008,15.995,46.91]
[1673324385887,114.4847,16.008,15.997,20.0]
[1673324386095,114.4847,16.008,15.998,66.9]
[1673324386311,114.4847,16.008,15.999,17.0]
[1673324386522,114.4847,16.008,15.999,36.00061681]
[1673324386733,114.4847,16.008,16.0,59.00061681]
[1673324386942,114.4847,16.008,16.001,17.0]
[1673324388314,114.4847,16.008,16.002,20.0]
[1673324389377,114.4847,16.008,16.003,17.0]
[1673324390736,114.4847,16.008,16.002,20.0]
[1673324391076,114.4847,16.008,16.0,20.0]
[1673324391381,114.4847,16.008,15.999,20.0]
[1673324392524,114.4847,16.008,16.0,19.00061681]
[1673324392732,114.4847,16.008,15.99,46.45]
[1673324392942,46.88,16.004,15.99,46.45]
[1673324393584,46.88,16.004,15.99,26.45]
[1673324393789,20.0,16.003,15.99,26.45]
[1673324394008,20.0,16.001,15.99,26.45]
[1673324394736,113.3944,16.002,15.991,20.0]
[1673324396202,20.0,16.001,15.99,26.45]
[1673324396411,113.3944,16.002,15.992,20.0]
[1673324397147,113.3944,16.002,15.993,17.0]
[1673324398832,113.3944,16.002,15.99,26.45]
[1673324399042,20.0,16.001,15.994,17.0]
[1673324399252,20.0,16.001,15.99,26.45]
[1673324399563,20.0,16.001,15.991,20.0]
[1673324402000,20.0,16.001,15.992,17.0]
[1673324404724,113.3944,16.002,15.992,17.0]
[1673324405664,20.0,16.001,15.992,17.0]
[1673324406408,113.3944,16.002,15.992,17.0]
[1673324406606,20.0,16.001,15.992,17.0]
[1673324408602,113.3944,16.002,15.992,17.0]
[1673324408814,5.5192352,16.005,15.993,66.91]
[1673324409140,5.5192352,16.005,15.995,20.0]
[1673324409332,5.5192352,16.005,15.996,63.9]
[1673324409541,5.5192352,16.005,15.997,20.0]
[1673324409758,5.5192352,16.005,15.998,46.9]
[1673324409975,5.5192352,16.005,15.998,65.90061681]
[1673324410166,5.5192352,16.005,15.999,37.0]
[1673324410380,5.5192352,16.005,16.0,46.89]
[1673324410605,5.5192352,16.005,16.001,20.0]
[1673324410821,5.5192352,16.005,16.002,17.0]
[1673324411654,0.0002352,16.005,16.003,39.00061681]
[1673324411858,112.3371,16.017,16.005,20.0]
[1673324412059,112.3371,16.017,16.006,20.0]
[1673324413215,112.3371,16.017,16.005,20.0]
[1673324413431,112.3371,16.017,16.003,40.0]
[1673324414289,20.0,16.014,15.996,46.9]
[1673324414501,20.0,16.014,16.001,20.0]
[1673324414716,20.0,16.014,16.0,26.81]
[1673324415114,20.0,16.014,16.001,20.0]
[1673324416393,66.84,16.016,16.001,40.0]
[1673324416923,132.3371,16.017,16.001,40.0]
[1673324416924,112.3371,16.017,16.01,26.72]
[1673324417236,112.3371,16.017,16.011,20.0]
[1673324418493,20.0,16.016,16.006,20.0]
[1673324418704,112.3371,16.017,16.007,46.87]
[1673324418916,112.3371,16.017,16.008,20.0]
[1673324419340,46.82,16.024,16.01,26.72]
[1673324419654,115.1078,16.023,16.011,20.0]
[1673324420056,115.1078,16.023,16.012,17.0]
[1673324420478,20.0,16.019,16.011,20.0]
[1673324421752,46.84,16.018,16.0,133.82]
[1673324421959,65.84061681,16.018,16.0,26.94]
[1673324422168,114.54728407,16.018,16.0,26.94]
[1673324422383,20.0,16.017,16.0,26.94]
[1673324422605,46.84,16.016,16.0,26.94]
[1673324422826,20.0,16.015,16.0,26.94]
[1673324423127,20.0,16.013,16.0,26.94]
[1673324423320,46.86,16.012,16.0,26.94]
[1673324423531,20.0,16.011,16.0,26.94]
[1673324424173,20.0,16.011,15.998,46.9]
[1673324424387,20.0,16.011,15.994,46.91]
[1673324424582,20.0,16.009,15.996,20.0]
[1673324425147,20.0,16.009,15.995,20.0]
[1673324425652,20.0,16.009,15.996,17.0]
[1673324425854,20.0,16.009,15.997,20.0]
[1673324426409,20.0,16.009,15.998,17.0]
[1673324426604,20.0,16.009,15.999,20.0]
[1673324427235,20.0,16.009,15.995,20.0]
[1673324428398,20.0,16.009,15.996,17.0]
[1673324428608,20.0,16.009,15.997,20.0]
[1673324429010,20.0,16.009,15.998,17.0]
[1673324429226,20.0,16.009,15.999,20.0]
[1673324429454,20.0,16.009,15.999,19.053582]
[1673324429654,20.0,16.009,15.994,65.91061681]
[1673324431221,20.0,16.009,15.995,20.0]
[1673324431535,20.0,16.009,15.996,46.9]
[1673324431856,20.0,16.009,15.997,37.0]
[1673324435855,20.0,16.009,15.997,56.00061681]
[1673324437437,117.7786,16.01,15.997,56.00061681]
[1673324437636,117.7786,16.01,16.0,26.63]
[1673324437845,117.7786,16.01,16.001,66.89]
[1673324438053,117.7786,16.01,16.001,85.89061681]
[1673324438279,117.7786,16.01,16.002,19.00061681]
[1673324439538,117.7786,16.01,16.001,66.89]
[1673324439740,20.0,16.009,16.001,20.0]
[1673324439947,20.0,16.009,15.999,20.0]
[1673324440158,20.0,16.009,16.0,17.0]
[1673324440372,20.0,16.009,15.999,19.00061681]
[1673324440590,46.87,16.008,15.99,26.9]
[1673324440807,63.87,16.008,15.99,26.9]
[1673324441000,69.78728407,16.007,15.99,26.9]
[1673324441209,20.0,16.005,15.99,26.9]
[1673324441414,46.88,16.004,15.99,26.9]
[1673324441741,17.0,16.003,15.985,46.93]
[1673324441956,20.0,16.001,15.983,46.94]
[1673324442270,46.89,16.0,15.983,46.94]
[1673324442486,65.89061681,16.0,15.981,46.95]
[1673324442799,39.00061681,15.999,15.981,46.95]
[1673324443107,46.9,15.998,15.981,46.95]
[1673324443317,20.0,15.997,15.981,46.95]
[1673324443848,46.9,15.996,15.981,46.95]
[1673324444040,20.0,15.995,15.981,46.95]
[1673324444252,113.3425,15.994,15.981,46.95]
[1673324444590,20.0,15.993,15.981,46.95]
[1673324447527,113.3425,15.994,15.981,46.95]
[1673324448351,113.3425,15.994,15.98,26.67]
[1673324448352,26.44,15.99,15.977,32.78186144]
[1673324448566,46.92,15.989,15.97,26.36]
[1673324448882,20.0,15.988,15.97,26.36]
[1673324449098,46.93,15.987,15.971,46.98]
[1673324449304,20.0,15.986,15.971,46.98]
[1673324449711,20.0,15.984,15.971,46.98]
[1673324450367,20.0,15.984,15.966,46.99]
[1673324450682,46.94,15.983,15.966,46.99]
[1673324450896,97.72666726,15.983,15.962,47.0]
[1673324451099,46.94,15.983,15.963,20.0]
[1673324451312,20.0,15.982,15.964,67.0]
[1673324451505,46.95,15.981,15.965,20.0]
[1673324451715,46.95,15.981,15.966,46.99]
[1673324451929,20.0,15.982,15.967,20.0]
[1673324452146,20.0,15.982,15.968,46.98]
[1673324452353,20.0,15.982,15.969,20.0]
[1673324453080,20.0,15.98,15.964,20.0]
[1673324453291,20.0,15.98,15.965,46.99]
[1673324453527,20.0,15.979,15.965,46.99]
[1673324453704,66.96,15.978,15.961,47.01]
[1673324454142,20.0,15.977,15.961,47.01]
[1673324454355,20.0,15.975,15.96,26.9]
[1673324454551,117.6667,15.974,15.96,26.9]
[1673324454764,117.6667,15.974,15.961,47.01]
[1673324455176,46.97,15.973,15.96,26.9]
[1673324455393,164.6367,15.974,15.961,20.0]
[1673324455808,164.6367,15.974,15.962,17.0]
[1673324456022,20.0,15.973,15.962,17.0]
[1673324457191,20.0,15.973,15.961,20.0]
[1673324457404,20.0,15.973,15.958,20.0]
[1673324457617,20.0,15.973,15.956,47.02]
[1673324457618,20.0,15.971,15.957,20.0]
[1673324457928,20.0,15.971,15.958,47.01]
[1673324458139,20.0,15.971,15.959,20.0]
[1673324458670,20.0,15.971,15.957,20.0]
[1673324458877,20.0,15.971,15.958,47.01]
[1673324459092,20.0,15.971,15.959,20.0]
[1673324459804,20.0,15.971,15.957,20.0]
[1673324460014,20.0,15.971,15.958,47.01]
[1673324460224,20.0,15.971,15.959,20.0]
[1673324460662,20.0,15.971,15.957,20.0]
[1673324460876,20.0,15.971,15.958,47.01]
[1673324461061,20.0,15.971,15.959,20.0]
[1673324461706,20.0,15.971,15.957,20.0]
[1673324461896,20.0,15.971,15.958,20.0]
[1673324462450,46.97,15.972,15.958,20.0]
[1673324462659,20.0,15.971,15.957,20.0]
[1673324462853,66.98,15.97,15.955,67.02]
[1673324463183,20.0,15.969,15.955,67.02]
[1673324463810,20.0,15.969,15.955,86.02061681]
[1673324465068,46.98,15.971,15.955,86.02061681]
[1673324465279,46.96,15.975,15.961,20.0]
[1673324465495,110.2809,15.976,15.962,47.0]
[1673324465801,110.2809,15.976,15.963,20.0]
[1673324466016,110.2809,15.976,15.963,39.00061681]
[1673324466234,110.2809,15.976,15.963,71.78247825]
[1673324467500,46.96,15.975,15.964,32.78186144]
[1673324467709,46.97,15.973,15.96,19.00061681]
[1673324467919,20.0,15.972,15.961,20.0]
[1673324468134,46.98,15.971,15.961,20.0]
[1673324468640,46.98,15.971,15.959,20.0]
[1673324469062,46.98,15.971,15.959,39.00061681]
[1673324469276,46.97,15.973,15.96,20.0]
[1673324469485,46.97,15.973,15.961,20.0]
[1673324470018,46.97,15.973,15.962,20.0]
[1673324471497,46.97,15.973,15.962,39.00061681]
[1673324472747,46.97,15.973,15.962,19.00061681]
[1673324473263,20.0,15.973,15.961,20.0]
[1673324473886,66.97,15.973,15.961,20.0]
[1673324475176,46.97,15.973,15.961,20.0]
[1673324475798,46.97,15.973,15.958,66.01061681]
[1673324475799,20.0,15.971,15.958,66.01061681]
[1673324476009,66.98,15.97,15.956,47.02]
[1673324476414,20.0,15.969,15.956,47.02]
[1673324476625,46.97,15.973,15.957,39.00061681]
[1673324476941,117.6667,15.974,15.961,20.0]
[1673324477161,117.6667,15.974,15.962,47.0]
[1673324477375,117.6667,15.974,15.962,83.00061681]
[1673324477572,117.6667,15.974,15.963,19.00061681]
[1673324477782,117.6667,15.974,15.964,47.0]
[1673324477992,20.0,15.989,15.964,47.0]
[1673324477993,46.94,15.982,15.965,20.0]
[1673324478207,20.0,15.981,15.966,66.99]
[1673324478420,73.58,15.98,15.962,47.0]
[1673324478624,73.58,15.98,15.96,26.9]
[1673324478824,20.0,15.979,15.957,20.0]
[1673324479041,46.96,15.978,15.958,47.01]
[1673324479251,17.0,15.977,15.958,47.01]
[1673324479472,46.96,15.976,15.958,47.01]
[1673324479686,20.0,15.975,15.956,47.02]
[1673324479878,20.0,15.973,15.956,47.02]
[1673324480092,66.97,15.972,15.954,47.03]
[1673324480299,66.97,15.972,15.953,47.03]
[1673324480512,20.0,15.971,15.953,47.03]
[1673324480735,66.98,15.97,15.953,47.03]
[1673324480948,20.0,15.969,15.953,47.03]
[1673324481162,46.98,15.968,15.953,47.03]
[1673324481377,113.0177,15.967,15.953,47.03]
[1673324482320,113.0177,15.967,15.952,47.03]
[1673324482519,113.0177,15.967,15.954,19.00061681]
[1673324482725,113.0177,15.967,15.955,47.02]
[1673324482943,113.0177,15.967,15.956,37.0]
[1673324483153,113.0177,15.967,15.957,67.02]
[1673324483357,113.0177,15.967,15.958,37.0]
[1673324483574,113.0177,15.967,15.958,56.00061681]
[1673324483794,113.0177,15.967,15.959,19.00061681]
[1673324483987,113.0177,15.967,15.96,20.0]
[1673324484525,113.0177,15.967,15.96,39.00061681]
[1673324487981,113.0177,15.967,15.96,20.0]
[1673324488198,20.0,15.966,15.957,20.0]
[1673324488407,20.0,15.966,15.955,20.0]
[1673324492404,113.0177,15.967,15.955,20.0]
[1673324492533,113.0177,15.967,15.956,86.02061681]
[1673324492879,113.0177,15.967,15.957,39.00061681]
[1673324493065,113.0177,15.967,15.958,20.0]
[1673324493282,113.0177,15.967,15.958,39.00061681]
[1673324493502,113.0177,15.967,15.959,39.00061681]
[1673324493897,113.0177,15.967,15.96,19.00061681]
[1673324494099,113.0177,15.967,15.961,20.0]
[1673324497686,113.0177,15.967,15.962,17.0]
[1673324499903,113.0177,15.967,15.961,20.0]
[1673324500105,113.0177,15.967,15.957,20.0]
[1673324500415,113.0177,15.967,15.958,19.00061681]
[1673324500626,113.0177,15.967,15.959,20.0]
[1673324502820,113.0177,15.967,15.959,39.00061681]
[1673324503034,113.0177,15.967,15.96,20.0]
[1673324503264,113.0177,15.967,15.961,20.0]
[1673324503665,113.0177,15.967,15.96,20.0]
[1673324504215,46.97,15.973,15.961,39.00061681]
[1673324504401,114.6373,15.972,15.962,17.0]
[1673324504614,46.98,15.971,15.962,17.0]
[1673324504836,66.98,15.971,15.963,17.0]
[1673324505573,20.0,15.97,15.963,17.0]
[1673324505779,46.98,15.969,15.954,47.03]
[1673324506002,46.98,15.969,15.952,47.03]
[1673324506186,20.0,15.967,15.953,39.00061681]
[1673324506403,46.99,15.966,15.953,39.00061681]
[1673324506646,20.0,15.965,15.953,39.00061681]
[1673324506842,129.8654,15.965,15.953,39.00061681]
[1673324507036,109.8654,15.965,15.953,39.00061681]
[1673324507575,20.0,15.964,15.953,39.00061681]
[1673324507781,109.8654,15.965,15.953,39.00061681]
[1673324507995,109.8654,15.965,15.954,17.0]
[1673324508206,20.0,15.964,15.954,17.0]
[1673324508417,109.8654,15.965,15.955,20.0]
[1673324508944,109.8654,15.965,15.957,20.0]
[1673324509343,109.8654,15.965,15.957,39.00061681]
[1673324509775,109.8654,15.965,15.958,17.0]
[1673324511245,109.8654,15.965,15.958,36.00061681]
[1673324513645,109.8654,15.965,15.958,17.0]
[1673324514083,109.8654,15.965,15.956,19.00061681]
[1673324514820,20.0,15.964,15.953,39.00061681]
[1673324515426,109.8654,15.965,15.953,39.00061681]
[1673324515659,46.97,15.974,15.954,67.03]
[1673324515869,20.0,15.981,15.96,133.87]
[1673324515870,66.96,15.975,15.96,133.87]
[1673324516061,46.95,15.98,15.961,67.01]
[1673324516269,46.94,15.982,15.97,26.68]
[1673324516480,46.94,15.982,15.971,40.0]
[1673324516686,46.94,15.982,15.971,59.00061681]
[1673324516922,117.3931,15.983,15.971,105.98061681]
[1673324517116,117.3931,15.983,15.972,36.00061681]
[1673324517327,117.3931,15.983,15.973,20.0]
[1673324517537,117.3931,15.983,15.974,17.0]
[1673324517748,117.3931,15.983,15.974,36.00061681]
[1673324517955,46.92,15.991,15.974,17.0]
[1673324518170,117.3931,15.991,15.975,85.96061681]
[1673324518376,117.3931,15.991,15.98,26.75]
[1673324518592,117.3931,15.991,15.981,83.95]
[1673324518801,117.3931,15.991,15.982,20.0]
[1673324519014,117.3931,15.991,15.983,17.0]
[1673324519237,117.3931,15.991,15.984,20.0]
[1673324519642,117.3931,15.991,15.984,39.00061681]
[1673324519854,117.3931,15.991,15.982,20.0]
[1673324520064,117.3931,15.991,15.983,17.0]
[1673324521974,117.3931,15.991,15.984,17.0]
[1673324522499,117.3931,15.991,15.982,20.0]
[1673324522500,117.3931,15.991,15.983,17.0]
[1673324526277,117.3931,15.991,15.984,19.00061681]
[1673324533023,20.0,15.99,15.981,20.0]
[1673324533242,20.0,15.99,15.981,39.00061681]
[1673324534708,117.3931,15.991,15.981,39.00061681]
[1673324534916,117.3931,15.991,15.982,17.0]
[1673324535128,46.9,15.998,15.982,17.0]
[1673324535330,109.6374,15.997,15.983,77.93581159]
[1673324535531,109.6374,15.997,15.983,124.87581159]
[1673324535741,109.6374,15.997,15.985,20.0]
[1673324536184,109.6374,15.997,15.986,19.00061681]
[1673324536489,20.0,15.996,15.985,20.0]
[1673324536704,109.6374,15.997,15.985,20.0]
[1673324537327,109.6374,15.997,15.986,17.0]
[1673324537540,46.9,15.996,15.986,17.0]
[1673324537748,109.6374,15.997,15.986,17.0]
[1673324538191,46.9,15.996,15.984,20.0]
[1673324538597,46.9,15.996,15.985,38.93519478]
[1673324538928,46.9,15.996,15.986,17.0]
[1673324539244,46.9,15.996,15.986,58.70852811]
[1673324539640,46.9,15.996,15.986,41.70852811]
[1673324539972,20.0,15.995,15.984,19.00061681]
[1673324540167,46.91,15.994,15.984,19.00061681]
[1673324540922,46.91,15.994,15.985,17.0]
[1673324541638,20.0,15.993,15.985,17.0]
[1673324542275,20.0,15.991,15.985,17.0]
[1673324545959,20.0,15.993,15.985,17.0]
[1673324546154,20.0,15.993,15.982,19.00061681]
[1673324546371,156.6861,15.992,15.981,20.0]
[1673324546580,20.0,15.991,15.981,20.0]
[1673324548052,20.0,15.989,15.981,20.0]
[1673324548376,20.0,15.989,15.976,66.96]
[1673324548588,20.0,15.989,15.977,20.0]
[1673324548782,20.0,15.989,15.978,20.0]
[1673324549431,20.0,15.989,15.977,20.0]
[1673324550796,46.93,15.988,15.977,20.0]
[1673324551012,20.0,15.987,15.975,20.0]
[1673324552800,20.0,15.987,15.975,19.00061681]
[1673324553113,20.0,15.985,15.975,19.00061681]
[1673324553523,46.93,15.988,15.975,19.00061681]
[1673324553723,20.0,15.988,15.975,19.00061681]
[1673324554144,20.0,15.988,15.976,17.0]
[1673324554466,20.0,15.988,15.977,19.00061681]
[1673324556370,20.0,15.988,15.978,17.0]